[Event "Titled Tuesday Blitz October 25 Late 2022"]
[White "Holt, Conrad"]
[Black "Florescu, Codrut-Constantin"]
[WhiteFideId "2034387"]
[BlackFideId "1202200"]
[WhiteElo "2592"]
[BlackElo "2191"]
[Result "1-0"]
[Round "05"]
[TimeControl "180+1"]
[Date "2022.10.26"]
[WhiteClock "0:02:17"]
[BlackClock "0:02:18"]

1. d4 {[%clk 0:03:00]}  Nf6 {[%clk 0:02:59]} 2. c4 {[%clk 0:03:01]}  e6 {[%clk 0:02:59]} 3. Nc3 {[%clk 0:03:01]}  Bb4 {[%clk 0:02:58]} 4. Qc2 {[%clk 0:03:02]}  O-O {[%clk 0:02:58]} 5. e4 {[%clk 0:03:02]}  d6 {[%clk 0:02:57]} 6. a3 {[%clk 0:03:01]}  Bxc3+ {[%clk 0:02:56]} 7. bxc3 {[%clk 0:03:02]}  e5 {[%clk 0:02:56]} 8. Bd3 {[%clk 0:03:02]}  Nc6 {[%clk 0:02:56]} 9. Ne2 {[%clk 0:03:03]}  h6 {[%clk 0:02:55]} 10. O-O {[%clk 0:03:03]}  b6 {[%clk 0:02:55]} 11. f4 {[%clk 0:03:02]}  exd4 {[%clk 0:02:54]} 12. cxd4 {[%clk 0:03:02]}  Ba6 {[%clk 0:02:54]} 13. d5 {[%clk 0:02:57]}  Na5 {[%clk 0:02:53]} 14. Bb2 {[%clk 0:02:50]}  Nd7 {[%clk 0:02:52]} 15. Ng3 {[%clk 0:02:46]}  Nc5 {[%clk 0:02:51]} 16. Nh5 {[%clk 0:02:41]}  f6 {[%clk 0:02:50]} 17. e5 {[%clk 0:02:39]}  Nxd3 {[%clk 0:02:45]} 18. Qxd3 {[%clk 0:02:39]}  Qe8 {[%clk 0:02:43]} 19. Nxg7 {[%clk 0:02:33]}  Kxg7 {[%clk 0:02:26]} 20. exf6+ {[%clk 0:02:32]}  Rxf6 {[%clk 0:02:26]} 21. Rae1 {[%clk 0:02:28]}  Qf7 {[%clk 0:02:25]} 22. Re6 {[%clk 0:02:27]}  Bxc4 {[%clk 0:02:22]} 23. Bxf6+ {[%clk 0:02:25]}  Qxf6 {[%clk 0:02:17]} 24. Qg3+ {[%clk 0:02:23]}  Kf7 {[%clk 0:02:17]} 25. Rxf6+ {[%clk 0:02:21]}  Kxf6 {[%clk 0:02:18]} 26. Qh4+ {[%clk 0:02:19]}  Kg6 {[%clk 0:02:18]} 27. f5+ {[%clk 0:02:18]}  Kf7 {[%clk 0:02:18]} 28. Qh5+ {[%clk 0:02:17]} 1-0


[Site "https://www.chess.com"]

[Event "Titled Tuesday Blitz October 25 Late 2022"]
[White "Jimenez Fernandez, Rebeca"]
[Black "Prydun, Andriy"]
[WhiteFideId "32070934"]
[BlackFideId "14145898"]
[WhiteElo "1946"]
[BlackElo "2163"]
[Result "0-1"]
[Round "05"]
[TimeControl "180+1"]
[Date "2022.10.26"]
[WhiteClock "0:00:06"]
[BlackClock "0:00:18"]

1. e4 {[%clk 0:03:00]}  c6 {[%clk 0:02:49]} 2. d4 {[%clk 0:02:56]}  d5 {[%clk 0:02:49]} 3. Nc3 {[%clk 0:02:52]}  dxe4 {[%clk 0:02:47]} 4. Nxe4 {[%clk 0:02:53]}  Nd7 {[%clk 0:02:47]} 5. Ng5 {[%clk 0:02:52]}  Ngf6 {[%clk 0:02:45]} 6. Bd3 {[%clk 0:02:51]}  e6 {[%clk 0:02:45]} 7. N1f3 {[%clk 0:02:26]}  Bd6 {[%clk 0:02:43]} 8. O-O {[%clk 0:02:22]}  O-O {[%clk 0:02:39]} 9. Qe2 {[%clk 0:02:16]}  Qc7 {[%clk 0:02:30]} 10. Re1 {[%clk 0:01:57]}  b6 {[%clk 0:02:28]} 11. Ne5 {[%clk 0:01:53]}  h6 {[%clk 0:01:58]} 12. Nexf7 {[%clk 0:01:32]}  Rxf7 {[%clk 0:01:48]} 13. Nxf7 {[%clk 0:01:27]}  Kxf7 {[%clk 0:01:48]} 14. Qxe6+ {[%clk 0:01:28]}  Kf8 {[%clk 0:01:47]} 15. Bg6 {[%clk 0:01:23]}  Ne5 {[%clk 0:01:47]} 16. Qb3 {[%clk 0:00:18]}  Nxg6 {[%clk 0:01:45]} 17. c4 {[%clk 0:00:17]}  c5 {[%clk 0:01:41]} 18. Qf3 {[%clk 0:00:15]}  Bb7 {[%clk 0:01:34]} 19. d5 {[%clk 0:00:16]}  Qf7 {[%clk 0:01:31]} 20. Re6 {[%clk 0:00:15]}  Rd8 {[%clk 0:01:29]} 21. Bxh6 {[%clk 0:00:15]}  Ne5 {[%clk 0:00:51]} 22. Qf5 {[%clk 0:00:08]}  Neg4 {[%clk 0:00:48]} 23. Bg5 {[%clk 0:00:07]}  Bc8 {[%clk 0:00:47]} 24. h3 {[%clk 0:00:07]}  Ne5 {[%clk 0:00:41]} 25. Rxd6 {[%clk 0:00:06]}  Bxf5 {[%clk 0:00:40]} 26. Rxd8+ {[%clk 0:00:06]}  Ke7 {[%clk 0:00:40]} 27. Ra8 {[%clk 0:00:05]}  Qg6 {[%clk 0:00:39]} 28. Rxa7+ {[%clk 0:00:05]}  Kf8 {[%clk 0:00:34]} 29. f4 {[%clk 0:00:06]}  Ned7 {[%clk 0:00:32]} 30. Re1 {[%clk 0:00:05]}  Ne4 {[%clk 0:00:30]} 31. Ra8+ {[%clk 0:00:06]}  Kf7 {[%clk 0:00:30]} 32. Ra7 {[%clk 0:00:06]}  Nxg5 {[%clk 0:00:29]} 33. fxg5 {[%clk 0:00:06]}  Qxg5 {[%clk 0:00:30]} 34. Rf1 {[%clk 0:00:07]}  Kg6 {[%clk 0:00:30]} 35. g4 {[%clk 0:00:06]}  Ne5 {[%clk 0:00:27]} 36. Rxf5 {[%clk 0:00:05]}  Qc1+ {[%clk 0:00:22]} 37. Kf2 {[%clk 0:00:06]}  Qxb2+ {[%clk 0:00:23]} 38. Ke3 {[%clk 0:00:06]}  Qd4+ {[%clk 0:00:23]} 39. Ke2 {[%clk 0:00:06]}  Nxc4 {[%clk 0:00:22]} 40. Rb7 {[%clk 0:00:06]}  Qe3+ {[%clk 0:00:22]} 41. Kf1 {[%clk 0:00:06]}  Qc1+ {[%clk 0:00:18]} 42. Kf2 {[%clk 0:00:06]}  Qb2+ {[%clk 0:00:19]} 43. Kg3 {[%clk 0:00:06]}  Ne3 {[%clk 0:00:18]} 44. Rd7 {[%clk 0:00:05]}  Nxf5+ {[%clk 0:00:18]} 45. gxf5+ {[%clk 0:00:06]}  Kxf5 {[%clk 0:00:18]} 46. Rd6 {[%clk 0:00:06]}  g5 {[%clk 0:00:18]} 47. Rxb6 {[%clk 0:00:06]}  Qxb6 {[%clk 0:00:18]} 0-1


[Site "https://www.chess.com"]

[Event "Titled Tuesday Blitz October 25 Late 2022"]
[White "Kollars, Dmitrij"]
[Black "Naroditsky, Daniel"]
[WhiteFideId "12909572"]
[BlackFideId "2026961"]
[WhiteElo "2584"]
[BlackElo "2628"]
[Result "1/2-1/2"]
[Round "05"]
[TimeControl "180+1"]
[Date "2022.10.26"]
[WhiteClock "0:00:11"]
[BlackClock "0:00:05"]

1. Nf3 {[%clk 0:03:00]}  Nf6 {[%clk 0:02:55]} 2. c4 {[%clk 0:02:59]}  g6 {[%clk 0:02:55]} 3. g3 {[%clk 0:02:59]}  Bg7 {[%clk 0:02:56]} 4. Bg2 {[%clk 0:02:59]}  O-O {[%clk 0:02:57]} 5. O-O {[%clk 0:03:00]}  d6 {[%clk 0:02:58]} 6. Nc3 {[%clk 0:03:00]}  e5 {[%clk 0:02:57]} 7. d4 {[%clk 0:02:56]}  Nbd7 {[%clk 0:02:54]} 8. Qc2 {[%clk 0:02:49]}  exd4 {[%clk 0:02:55]} 9. Nxd4 {[%clk 0:02:48]}  Nb6 {[%clk 0:02:55]} 10. b3 {[%clk 0:02:41]}  c5 {[%clk 0:02:56]} 11. Nf3 {[%clk 0:02:40]}  Bf5 {[%clk 0:02:56]} 12. Qd2 {[%clk 0:02:00]}  d5 {[%clk 0:02:44]} 13. Nh4 {[%clk 0:01:59]}  Be6 {[%clk 0:02:13]} 14. cxd5 {[%clk 0:01:58]}  Nfxd5 {[%clk 0:02:09]} 15. Nxd5 {[%clk 0:01:55]}  Bxa1 {[%clk 0:02:06]} 16. Nxb6 {[%clk 0:01:39]}  axb6 {[%clk 0:02:06]} 17. Qc2 {[%clk 0:01:34]}  Qc7 {[%clk 0:01:56]} 18. Nf3 {[%clk 0:01:13]}  Bg7 {[%clk 0:01:50]} 19. Bf4 {[%clk 0:01:13]}  Qe7 {[%clk 0:01:51]} 20. Ng5 {[%clk 0:01:09]}  Bf5 {[%clk 0:01:48]} 21. e4 {[%clk 0:01:04]}  Bd7 {[%clk 0:01:48]} 22. Rd1 {[%clk 0:00:55]}  Bc6 {[%clk 0:01:49]} 23. f3 {[%clk 0:00:47]}  Rad8 {[%clk 0:01:44]} 24. Re1 {[%clk 0:00:44]}  h6 {[%clk 0:01:31]} 25. Nh3 {[%clk 0:00:44]}  b5 {[%clk 0:01:16]} 26. Nf2 {[%clk 0:00:41]}  c4 {[%clk 0:01:01]} 27. bxc4 {[%clk 0:00:42]}  Qc5 {[%clk 0:01:01]} 28. Bf1 {[%clk 0:00:32]}  g5 {[%clk 0:01:00]} 29. Bc1 {[%clk 0:00:20]}  bxc4 {[%clk 0:00:57]} 30. Qxc4 {[%clk 0:00:17]}  Bd4 {[%clk 0:00:41]} 31. Qxc5 {[%clk 0:00:17]}  Bxc5 {[%clk 0:00:42]} 32. Kg2 {[%clk 0:00:17]}  f5 {[%clk 0:00:38]} 33. Bc4+ {[%clk 0:00:17]}  Kh7 {[%clk 0:00:30]} 34. exf5 {[%clk 0:00:18]}  Bxf2 {[%clk 0:00:27]} 35. Kxf2 {[%clk 0:00:17]}  Rxf5 {[%clk 0:00:25]} 36. Re3 {[%clk 0:00:17]}  Rc5 {[%clk 0:00:11]} 37. Rc3 {[%clk 0:00:17]}  b6 {[%clk 0:00:06]} 38. Be3 {[%clk 0:00:17]}  Rf5 {[%clk 0:00:05]} 39. Bd3 {[%clk 0:00:15]}  Rxd3 {[%clk 0:00:04]} 40. Rxd3 {[%clk 0:00:16]}  Rxf3+ {[%clk 0:00:04]} 41. Ke2 {[%clk 0:00:16]}  Bb5 {[%clk 0:00:02]} 42. Kxf3 {[%clk 0:00:16]}  Bxd3 {[%clk 0:00:03]} 43. Bxb6 {[%clk 0:00:17]}  Kg6 {[%clk 0:00:03]} 44. Ke3 {[%clk 0:00:17]}  Ba6 {[%clk 0:00:03]} 45. Bc5 {[%clk 0:00:15]}  Kf5 {[%clk 0:00:03]} 46. Kd4 {[%clk 0:00:13]}  Ke6 {[%clk 0:00:03]} 47. Bf8 {[%clk 0:00:13]}  h5 {[%clk 0:00:03]} 48. Kc5 {[%clk 0:00:13]}  Kd7 {[%clk 0:00:02]} 49. Kb6 {[%clk 0:00:13]}  Bc4 {[%clk 0:00:02]} 50. a4 {[%clk 0:00:13]}  Bd5 {[%clk 0:00:02]} 51. a5 {[%clk 0:00:14]}  g4 {[%clk 0:00:02]} 52. Bh6 {[%clk 0:00:14]}  Be4 {[%clk 0:00:02]} 53. Bf4 {[%clk 0:00:14]}  Bf3 {[%clk 0:00:02]} 54. Be5 {[%clk 0:00:12]}  Bg2 {[%clk 0:00:02]} 55. a6 {[%clk 0:00:12]}  Bf3 {[%clk 0:00:03]} 56. Bd4 {[%clk 0:00:11]}  Bg2 {[%clk 0:00:02]} 57. Be3 {[%clk 0:00:12]}  Bf3 {[%clk 0:00:03]} 58. Bd2 {[%clk 0:00:13]}  Bg2 {[%clk 0:00:03]} 59. Bf4 {[%clk 0:00:14]}  Bf3 {[%clk 0:00:04]} 60. Ka7 {[%clk 0:00:14]}  Kc8 {[%clk 0:00:04]} 61. Be5 {[%clk 0:00:13]}  Bg2 {[%clk 0:00:04]} 62. Kb6 {[%clk 0:00:14]}  Kd7 {[%clk 0:00:03]} 63. Kc5 {[%clk 0:00:14]}  Kc8 {[%clk 0:00:02]} 64. Bf4 {[%clk 0:00:14]}  Kd7 {[%clk 0:00:03]} 65. Be3 {[%clk 0:00:14]}  Bf3 {[%clk 0:00:03]} 66. Kd4 {[%clk 0:00:15]}  Kc7 {[%clk 0:00:02]} 67. Ke5 {[%clk 0:00:15]}  Kb8 {[%clk 0:00:02]} 68. Kf6 {[%clk 0:00:15]}  Bg2 {[%clk 0:00:02]} 69. Kg6 {[%clk 0:00:15]}  Ka8 {[%clk 0:00:02]} 70. Kxh5 {[%clk 0:00:15]}  Bh3 {[%clk 0:00:03]} 71. Kg5 {[%clk 0:00:15]}  Kb8 {[%clk 0:00:04]} 72. Kf6 {[%clk 0:00:14]}  Ka8 {[%clk 0:00:04]} 73. Ke5 {[%clk 0:00:15]}  Bf1 {[%clk 0:00:04]} 74. a7 {[%clk 0:00:14]}  Bh3 {[%clk 0:00:03]} 75. Kd4 {[%clk 0:00:14]}  Kb7 {[%clk 0:00:04]} 76. Kc4 {[%clk 0:00:15]}  Ka8 {[%clk 0:00:04]} 77. Kb5 {[%clk 0:00:15]}  Kb7 {[%clk 0:00:05]} 78. Ka5 {[%clk 0:00:15]}  Bg2 {[%clk 0:00:05]} 79. Bg1 {[%clk 0:00:13]}  Bh3 {[%clk 0:00:04]} 80. Ka4 {[%clk 0:00:13]}  Bg2 {[%clk 0:00:05]} 81. h4 {[%clk 0:00:11]}  gxh3 {[%clk 0:00:05]} 82. g4 {[%clk 0:00:10]}  h2 {[%clk 0:00:04]} 83. Bxh2 {[%clk 0:00:11]}  Kxa7 {[%clk 0:00:05]} 84. g5 {[%clk 0:00:11]}  Be4 {[%clk 0:00:05]} 85. g6 {[%clk 0:00:11]}  Bxg6 {[%clk 0:00:05]} 1/2-1/2


[Site "https://www.chess.com"]

[Event "Titled Tuesday Blitz October 25 Late 2022"]
[White "Kravtsiv, Martyn"]
[Black "Lewicki, Miroslaw"]
[WhiteFideId "14113147"]
[BlackFideId "1113380"]
[WhiteElo "2694"]
[BlackElo "2236"]
[Result "1-0"]
[Round "05"]
[TimeControl "180+1"]
[Date "2022.10.26"]
[WhiteClock "0:01:52"]
[BlackClock "0:00:06"]

1. e4 {[%clk 0:03:00]}  b6 {[%clk 0:02:58]} 2. d4 {[%clk 0:02:59]}  Bb7 {[%clk 0:02:52]} 3. Bd3 {[%clk 0:02:59]}  g6 {[%clk 0:02:52]} 4. Nf3 {[%clk 0:02:58]}  Bg7 {[%clk 0:02:52]} 5. c4 {[%clk 0:02:58]}  d6 {[%clk 0:02:33]} 6. Nc3 {[%clk 0:02:57]}  Nf6 {[%clk 0:02:33]} 7. Qe2 {[%clk 0:02:50]}  O-O {[%clk 0:02:34]} 8. O-O {[%clk 0:02:49]}  c5 {[%clk 0:02:34]} 9. d5 {[%clk 0:02:48]}  Nbd7 {[%clk 0:02:33]} 10. a4 {[%clk 0:02:47]}  Ng4 {[%clk 0:02:31]} 11. Bc2 {[%clk 0:02:43]}  e6 {[%clk 0:02:25]} 12. dxe6 {[%clk 0:02:33]}  Nde5 {[%clk 0:01:48]} 13. Ng5 {[%clk 0:02:33]}  fxe6 {[%clk 0:01:26]} 14. h3 {[%clk 0:02:31]}  Nxf2 {[%clk 0:01:12]} 15. Rxf2 {[%clk 0:02:23]}  Rxf2 {[%clk 0:01:11]} 16. Qxf2 {[%clk 0:02:22]}  Qe7 {[%clk 0:01:10]} 17. Qe2 {[%clk 0:02:18]}  Rf8 {[%clk 0:00:59]} 18. Be3 {[%clk 0:02:18]}  Bh6 {[%clk 0:00:59]} 19. h4 {[%clk 0:02:17]}  d5 {[%clk 0:00:56]} 20. cxd5 {[%clk 0:02:12]}  exd5 {[%clk 0:00:55]} 21. Nxd5 {[%clk 0:02:12]}  Bxd5 {[%clk 0:00:55]} 22. exd5 {[%clk 0:02:12]}  Nc4 {[%clk 0:00:09]} 23. Re1 {[%clk 0:02:10]}  Nxb2 {[%clk 0:00:09]} 24. Bb3 {[%clk 0:02:08]}  c4 {[%clk 0:00:08]} 25. Bxc4 {[%clk 0:02:00]}  Qb4 {[%clk 0:00:08]} 26. Ba2 {[%clk 0:01:53]}  Re8 {[%clk 0:00:08]} 27. d6+ {[%clk 0:01:52]}  Kf8 {[%clk 0:00:08]} 28. d7 {[%clk 0:01:52]}  Rd8 {[%clk 0:00:06]} 29. Qf2+ {[%clk 0:01:52]} 1-0


[Site "https://www.chess.com"]

[Event "Titled Tuesday Blitz October 25 Late 2022"]
[White "Luxama, Jacques Muller"]
[Black "Huber, Benedikt"]
[WhiteFideId "11900113"]
[BlackFideId "12923583"]
[WhiteElo "1931"]
[BlackElo "2199"]
[Result "1-0"]
[Round "05"]
[TimeControl "180+1"]
[Date "2022.10.26"]
[WhiteClock "0:00:01"]
[BlackClock "0:00:47"]

1. d4 {[%clk 0:03:00]}  e6 {[%clk 0:02:54]} 2. c4 {[%clk 0:02:58]}  f5 {[%clk 0:02:54]} 3. Nc3 {[%clk 0:02:56]}  Nf6 {[%clk 0:02:54]} 4. Bg5 {[%clk 0:02:52]}  Bb4 {[%clk 0:02:53]} 5. Qb3 {[%clk 0:02:48]}  a5 {[%clk 0:02:51]} 6. a3 {[%clk 0:02:47]}  Bxc3+ {[%clk 0:02:52]} 7. Qxc3 {[%clk 0:02:47]}  h6 {[%clk 0:02:52]} 8. Bxf6 {[%clk 0:02:46]}  Qxf6 {[%clk 0:02:53]} 9. Nf3 {[%clk 0:02:46]}  O-O {[%clk 0:02:53]} 10. e3 {[%clk 0:02:45]}  d6 {[%clk 0:02:53]} 11. Be2 {[%clk 0:02:40]}  b6 {[%clk 0:02:53]} 12. O-O {[%clk 0:02:25]}  Bb7 {[%clk 0:02:52]} 13. b4 {[%clk 0:02:24]}  Nd7 {[%clk 0:02:48]} 14. Rac1 {[%clk 0:02:00]}  axb4 {[%clk 0:02:46]} 15. axb4 {[%clk 0:01:59]}  Qg6 {[%clk 0:02:13]} 16. d5 {[%clk 0:01:53]}  exd5 {[%clk 0:02:08]} 17. cxd5 {[%clk 0:01:52]}  Bxd5 {[%clk 0:02:07]} 18. Qxc7 {[%clk 0:01:45]}  Ne5 {[%clk 0:02:07]} 19. Kh1 {[%clk 0:01:30]}  f4 {[%clk 0:01:58]} 20. Rcd1 {[%clk 0:01:04]}  Bxf3 {[%clk 0:01:52]} 21. Bxf3 {[%clk 0:01:02]}  Nxf3 {[%clk 0:01:48]} 22. gxf3 {[%clk 0:01:01]}  fxe3 {[%clk 0:01:43]} 23. fxe3 {[%clk 0:01:01]}  Kh8 {[%clk 0:01:29]} 24. Qxd6 {[%clk 0:00:59]}  Qc2 {[%clk 0:01:25]} 25. Qd3 {[%clk 0:00:54]}  Qb2 {[%clk 0:01:22]} 26. Rb1 {[%clk 0:00:49]}  Qe5 {[%clk 0:01:21]} 27. Rf2 {[%clk 0:00:38]}  Rfd8 {[%clk 0:01:15]} 28. Qb3 {[%clk 0:00:30]}  Rac8 {[%clk 0:01:08]} 29. Rc2 {[%clk 0:00:19]}  Ra8 {[%clk 0:01:08]} 30. e4 {[%clk 0:00:12]}  Rf8 {[%clk 0:01:06]} 31. Rf1 {[%clk 0:00:10]}  Rae8 {[%clk 0:01:02]} 32. Rcf2 {[%clk 0:00:07]}  Qf4 {[%clk 0:01:01]} 33. Qd5 {[%clk 0:00:06]}  Rd8 {[%clk 0:00:57]} 34. Qc6 {[%clk 0:00:06]}  Qe3 {[%clk 0:00:54]} 35. Qg6 {[%clk 0:00:04]}  Rf6 {[%clk 0:00:47]} 36. Qg3 {[%clk 0:00:03]}  Rdf8 {[%clk 0:00:47]} 37. Rg2 {[%clk 0:00:02]}  Qd3 {[%clk 0:00:47]} 38. Qxg7# {[%clk 0:00:01]} 1-0


[Site "https://www.chess.com"]

[Event "Titled Tuesday Blitz October 25 Late 2022"]
[White "Makaraci, Tunahan"]
[Black "Ansh M Shah"]
[WhiteFideId "6356559"]
[BlackFideId "25033379"]
[WhiteElo "2175"]
[BlackElo "2084"]
[Result "0-1"]
[Round "05"]
[TimeControl "180+1"]
[Date "2022.10.26"]
[WhiteClock "0:00:45"]
[BlackClock "0:00:06"]

1. e4 {[%clk 0:03:00]}  c6 {[%clk 0:02:59]} 2. d4 {[%clk 0:03:00]}  d5 {[%clk 0:03:00]} 3. exd5 {[%clk 0:03:01]}  cxd5 {[%clk 0:03:00]} 4. c4 {[%clk 0:03:02]}  e6 {[%clk 0:02:53]} 5. Nc3 {[%clk 0:03:02]}  Nc6 {[%clk 0:02:54]} 6. Nf3 {[%clk 0:03:01]}  Nf6 {[%clk 0:02:54]} 7. Bg5 {[%clk 0:03:00]}  Be7 {[%clk 0:02:55]} 8. c5 {[%clk 0:03:00]}  O-O {[%clk 0:02:55]} 9. Bb5 {[%clk 0:03:00]}  Bd7 {[%clk 0:02:56]} 10. O-O {[%clk 0:02:59]}  a5 {[%clk 0:02:52]} 11. Re1 {[%clk 0:02:56]}  b6 {[%clk 0:02:50]} 12. Bxc6 {[%clk 0:02:55]}  Bxc6 {[%clk 0:02:51]} 13. Ne5 {[%clk 0:02:55]}  Rc8 {[%clk 0:02:51]} 14. Nxc6 {[%clk 0:02:43]}  Rxc6 {[%clk 0:02:52]} 15. Qa4 {[%clk 0:02:41]}  Qa8 {[%clk 0:02:50]} 16. cxb6 {[%clk 0:02:29]}  Rxb6 {[%clk 0:02:51]} 17. Qc2 {[%clk 0:02:26]}  Rc8 {[%clk 0:02:37]} 18. Re3 {[%clk 0:02:21]}  h6 {[%clk 0:01:47]} 19. Bh4 {[%clk 0:02:17]}  Qb8 {[%clk 0:01:35]} 20. Rb1 {[%clk 0:02:12]}  a4 {[%clk 0:01:27]} 21. a3 {[%clk 0:02:07]}  Rb3 {[%clk 0:01:20]} 22. Bg3 {[%clk 0:01:59]}  Qb7 {[%clk 0:01:10]} 23. h3 {[%clk 0:01:58]}  Ne4 {[%clk 0:01:06]} 24. Rc1 {[%clk 0:01:34]}  Rxb2 {[%clk 0:00:55]} 25. Qxa4 {[%clk 0:01:34]}  Bg5 {[%clk 0:00:25]} 26. f4 {[%clk 0:01:28]}  Nxg3 {[%clk 0:00:24]} 27. fxg5 {[%clk 0:01:28]}  Nf5 {[%clk 0:00:17]} 28. Rf3 {[%clk 0:01:28]}  hxg5 {[%clk 0:00:17]} 29. Rcf1 {[%clk 0:01:24]}  Qb6 {[%clk 0:00:14]} 30. Rxf5 {[%clk 0:01:21]}  exf5 {[%clk 0:00:14]} 31. Nxd5 {[%clk 0:01:21]}  Qd8 {[%clk 0:00:11]} 32. Rxf5 {[%clk 0:01:16]}  Rd2 {[%clk 0:00:10]} 33. Re5 {[%clk 0:01:12]}  f6 {[%clk 0:00:10]} 34. Ne7+ {[%clk 0:01:05]}  Kh7 {[%clk 0:00:10]} 35. Re4 {[%clk 0:00:57]}  Rc1+ {[%clk 0:00:09]} 36. Kh2 {[%clk 0:00:55]}  Qd6+ {[%clk 0:00:09]} 37. Re5 {[%clk 0:00:52]}  fxe5 {[%clk 0:00:09]} 38. Nf5 {[%clk 0:00:51]}  Qf6 {[%clk 0:00:08]} 39. Qd7 {[%clk 0:00:48]}  Rxd4 {[%clk 0:00:07]} 40. Qe8 {[%clk 0:00:43]}  Qxf5 {[%clk 0:00:05]} 41. Qh5+ {[%clk 0:00:43]}  Kg8 {[%clk 0:00:05]} 42. Qe8+ {[%clk 0:00:44]}  Qf8 {[%clk 0:00:06]} 43. Qe6+ {[%clk 0:00:45]}  Kh8 {[%clk 0:00:06]} 0-1


[Site "https://www.chess.com"]

[Event "Titled Tuesday Blitz October 25 Late 2022"]
[White "Makarian, Rudik"]
[Black "Ballester Llagaria, Luis Eduardo"]
[WhiteFideId "44105681"]
[BlackFideId "2297620"]
[WhiteElo "2405"]
[BlackElo "2344"]
[Result "1-0"]
[Round "05"]
[TimeControl "180+1"]
[Date "2022.10.26"]
[WhiteClock "0:01:12"]
[BlackClock "0:00:27"]

1. Nf3 {[%clk 0:02:54]}  d5 {[%clk 0:02:59]} 2. g3 {[%clk 0:02:55]}  Bg4 {[%clk 0:02:59]} 3. Bg2 {[%clk 0:02:55]}  c6 {[%clk 0:02:58]} 4. b3 {[%clk 0:02:53]}  Nd7 {[%clk 0:02:57]} 5. Bb2 {[%clk 0:02:53]}  Ngf6 {[%clk 0:02:54]} 6. O-O {[%clk 0:02:53]}  e6 {[%clk 0:02:50]} 7. h3 {[%clk 0:02:52]}  Bh5 {[%clk 0:02:49]} 8. d3 {[%clk 0:02:51]}  h6 {[%clk 0:02:49]} 9. Nbd2 {[%clk 0:02:48]}  a5 {[%clk 0:02:44]} 10. a4 {[%clk 0:02:48]}  Bc5 {[%clk 0:02:35]} 11. e4 {[%clk 0:02:45]}  dxe4 {[%clk 0:02:30]} 12. dxe4 {[%clk 0:02:36]}  e5 {[%clk 0:01:41]} 13. g4 {[%clk 0:02:30]}  Bg6 {[%clk 0:01:21]} 14. Nxe5 {[%clk 0:02:30]}  Nxe5 {[%clk 0:01:22]} 15. Bxe5 {[%clk 0:02:31]}  Qe7 {[%clk 0:01:22]} 16. Bxf6 {[%clk 0:02:19]}  Qxf6 {[%clk 0:01:21]} 17. e5 {[%clk 0:02:13]}  Qe7 {[%clk 0:01:07]} 18. Qe2 {[%clk 0:02:04]}  h5 {[%clk 0:01:07]} 19. Ne4 {[%clk 0:01:31]}  hxg4 {[%clk 0:00:52]} 20. Qxg4 {[%clk 0:01:22]}  Rh4 {[%clk 0:00:46]} 21. Nf6+ {[%clk 0:01:17]}  gxf6 {[%clk 0:00:38]} 22. Qxh4 {[%clk 0:01:17]}  fxe5 {[%clk 0:00:31]} 23. Qh8+ {[%clk 0:01:14]}  Qf8 {[%clk 0:00:31]} 24. Qxe5+ {[%clk 0:01:15]}  Qe7 {[%clk 0:00:30]} 25. Rfe1 {[%clk 0:01:12]}  Bxc2 {[%clk 0:00:27]} 1-0


[Site "https://www.chess.com"]

[Event "Titled Tuesday Blitz October 25 Late 2022"]
[White "Malka, Samuel"]
[Black "Papp, Levente"]
[WhiteFideId "20643675"]
[BlackFideId "751243"]
[WhiteElo "2453"]
[BlackElo "2380"]
[Result "0-1"]
[Round "05"]
[TimeControl "180+1"]
[Date "2022.10.26"]
[WhiteClock "0:00:03"]
[BlackClock "0:00:07"]

1. d4 {[%clk 0:03:00]}  e6 {[%clk 0:02:58]} 2. c4 {[%clk 0:03:00]}  d5 {[%clk 0:02:57]} 3. Nf3 {[%clk 0:02:59]}  Nf6 {[%clk 0:02:55]} 4. g3 {[%clk 0:03:00]}  Bb4+ {[%clk 0:02:54]} 5. Bd2 {[%clk 0:02:59]}  Be7 {[%clk 0:02:54]} 6. Bg2 {[%clk 0:02:59]}  O-O {[%clk 0:02:54]} 7. O-O {[%clk 0:03:00]}  Ne4 {[%clk 0:02:54]} 8. Qc2 {[%clk 0:02:54]}  Nd7 {[%clk 0:02:50]} 9. Be3 {[%clk 0:02:43]}  c6 {[%clk 0:02:42]} 10. Nc3 {[%clk 0:02:37]}  f5 {[%clk 0:02:41]} 11. Ne5 {[%clk 0:02:38]}  Nxe5 {[%clk 0:02:33]} 12. dxe5 {[%clk 0:02:39]}  Qe8 {[%clk 0:02:29]} 13. Nxe4 {[%clk 0:02:20]}  fxe4 {[%clk 0:02:22]} 14. f3 {[%clk 0:02:20]}  exf3 {[%clk 0:02:09]} 15. exf3 {[%clk 0:02:21]}  b5 {[%clk 0:01:58]} 16. cxb5 {[%clk 0:02:19]}  cxb5 {[%clk 0:01:58]} 17. f4 {[%clk 0:02:08]}  Ba6 {[%clk 0:01:48]} 18. Rfc1 {[%clk 0:02:03]}  Rc8 {[%clk 0:01:45]} 19. Qd2 {[%clk 0:01:56]}  Qd7 {[%clk 0:01:37]} 20. Qa5 {[%clk 0:01:49]}  Bb7 {[%clk 0:01:29]} 21. Qxa7 {[%clk 0:01:45]}  Rc4 {[%clk 0:01:04]} 22. b3 {[%clk 0:01:41]}  Ra8 {[%clk 0:01:04]} 23. Qb6 {[%clk 0:01:39]}  Bd8 {[%clk 0:01:03]} 24. Qd6 {[%clk 0:01:32]}  Qxd6 {[%clk 0:01:03]} 25. exd6 {[%clk 0:01:33]}  Rxc1+ {[%clk 0:01:02]} 26. Rxc1 {[%clk 0:01:19]}  Rxa2 {[%clk 0:00:59]} 27. f5 {[%clk 0:01:03]}  e5 {[%clk 0:00:50]} 28. d7 {[%clk 0:00:46]}  Kf7 {[%clk 0:00:30]} 29. Rc8 {[%clk 0:00:44]}  Ra8 {[%clk 0:00:20]} 30. Rc5 {[%clk 0:00:34]}  Bb6 {[%clk 0:00:18]} 31. Rxd5 {[%clk 0:00:18]}  Bxe3+ {[%clk 0:00:18]} 32. Kf1 {[%clk 0:00:19]}  Rd8 {[%clk 0:00:19]} 33. Ke2 {[%clk 0:00:19]}  Bd4 {[%clk 0:00:12]} 34. Rxd4 {[%clk 0:00:13]}  Bxg2 {[%clk 0:00:12]} 35. Rd6 {[%clk 0:00:12]}  Ke7 {[%clk 0:00:09]} 36. Re6+ {[%clk 0:00:13]}  Kxd7 {[%clk 0:00:10]} 37. Rxe5 {[%clk 0:00:14]}  Re8 {[%clk 0:00:10]} 38. Rxe8 {[%clk 0:00:13]}  Kxe8 {[%clk 0:00:11]} 39. Ke3 {[%clk 0:00:13]}  Bd5 {[%clk 0:00:11]} 40. b4 {[%clk 0:00:12]}  Kf7 {[%clk 0:00:11]} 41. Kf4 {[%clk 0:00:13]}  Kf6 {[%clk 0:00:11]} 42. g4 {[%clk 0:00:13]}  Bc4 {[%clk 0:00:07]} 43. h4 {[%clk 0:00:13]}  h6 {[%clk 0:00:06]} 44. g5+ {[%clk 0:00:14]}  hxg5+ {[%clk 0:00:06]} 45. hxg5+ {[%clk 0:00:15]}  Ke7 {[%clk 0:00:06]} 46. Ke5 {[%clk 0:00:15]}  Kd7 {[%clk 0:00:06]} 47. f6 {[%clk 0:00:09]}  g6 {[%clk 0:00:06]} 48. Kf4 {[%clk 0:00:04]}  Ke6 {[%clk 0:00:06]} 49. Ke4 {[%clk 0:00:04]}  Kd6 {[%clk 0:00:06]} 50. Kf4 {[%clk 0:00:04]}  Bd5 {[%clk 0:00:05]} 51. Ke3 {[%clk 0:00:02]}  Ke5 {[%clk 0:00:06]} 52. Kd3 {[%clk 0:00:03]}  Bc4+ {[%clk 0:00:04]} 53. Ke3 {[%clk 0:00:02]}  Kf5 {[%clk 0:00:04]} 54. Kd4 {[%clk 0:00:02]}  Kxg5 {[%clk 0:00:05]} 55. f7 {[%clk 0:00:03]}  Bxf7 {[%clk 0:00:05]} 56. Kc5 {[%clk 0:00:03]}  Bc4 {[%clk 0:00:06]} 57. Kd4 {[%clk 0:00:03]}  Kf4 {[%clk 0:00:07]} 0-1


[Site "https://www.chess.com"]